[Event "2. Itzehoer Schach Open"]
[Site "Itzehoe, Germany"]
[Date "2023.04.30"]
[Round "4.30"]
[White "Roebers, Bregje"]
[Black "Bartels, Jens"]
[Result "0-1"]
[TimeControl "90 min / 40 Züge + 30 min + 30 Sek pro Zug"]
[WhiteElo "1162"]
[BlackElo "1589"]

1. e4 {[%clk 01:30:57]} {[%emt 00:00:02]} c5 {[%clk 01:30:06]} {[%emt
00:00:54]} 2. Nf3 {[%clk 01:31:11]} {[%emt 00:00:17]} Nc6 {[%clk 01:29:52]}
{[%emt 00:00:44]} 3. c3 {[%clk 01:31:14]} {[%emt 00:00:28]} d5 {[%clk
01:27:14]} {[%emt 00:03:05]} 4. exd5 {[%clk 01:30:01]} {[%emt 00:01:45]} Qxd5
{[%clk 01:27:21]} {[%emt 00:00:22]} 5. Be2 {[%clk 01:28:54]} {[%emt 00:01:38]}
e5 {[%clk 01:26:37]} {[%emt 00:01:14]} 6. d3 {[%clk 01:28:16]} {[%emt
00:01:08]} Bd6 {[%clk 01:22:55]} {[%emt 00:04:10]} 7. Qb3 {[%clk 01:22:13]}
{[%emt 00:06:35]} Qxb3 {[%clk 01:22:10]} {[%emt 00:01:14]} 8. axb3 {[%clk
01:22:25]} {[%emt 00:00:19]} b6 {[%clk 01:21:52]} {[%emt 00:00:46]} 9. O-O
{[%clk 01:21:10]} {[%emt 00:01:46]} Bb7 {[%clk 01:20:49]} {[%emt 00:01:33]} 10.
Nbd2 {[%clk 01:16:53]} {[%emt 00:04:47]} f6 {[%clk 01:17:48]} {[%emt 00:03:30]}
11. Re1 {[%clk 01:06:06]} {[%emt 00:11:18]} Nge7 {[%clk 01:16:37]} {[%emt
00:01:40]} 12. Ne4 {[%clk 01:03:33]} {[%emt 00:03:05]} Bc7 {[%clk 01:16:38]}
{[%emt 00:00:29]} 13. Bd1 {[%clk 01:02:04]} {[%emt 00:01:59]} O-O {[%clk
01:14:42]} {[%emt 00:02:09]} 14. Bc2 {[%clk 01:01:08]} {[%emt 00:01:43]} Rfd8
{[%clk 01:12:11]} {[%emt 00:03:00]} 15. Bd2 {[%clk 00:59:20]} {[%emt 00:02:18]}
a5 {[%clk 01:08:28]} {[%emt 00:04:13]} 16. c4 {[%clk 00:58:18]} {[%emt
00:01:33]} Nb4 {[%clk 01:06:54]} {[%emt 00:02:04]} 17. Bxb4 {[%clk 00:58:17]}
{[%emt 00:00:32]} axb4 {[%clk 01:05:43]} {[%emt 00:01:39]} 18. Ned2 {[%clk
00:53:39]} {[%emt 00:05:09]} Nc6 {[%clk 01:04:04]} {[%emt 00:02:07]} 19. h3
{[%clk 00:51:53]} {[%emt 00:02:19]} Na5 {[%clk 00:58:09]} {[%emt 00:06:24]} 20.
Ne4 {[%clk 00:48:23]} {[%emt 00:04:00]} Bc6 {[%clk 00:56:50]} {[%emt 00:01:48]}
21. Ned2 {[%clk 00:43:52]} {[%emt 00:05:02]} Nb7 {[%clk 00:55:35]} {[%emt
00:01:44]} 22. Kf1 {[%clk 00:39:31]} {[%emt 00:04:52]} Kf7 {[%clk 00:54:33]}
{[%emt 00:01:30]} 23. Kg1 {[%clk 00:38:07]} {[%emt 00:01:56]} g6 {[%clk
00:53:57]} {[%emt 00:01:05]} 24. Nh2 {[%clk 00:30:23]} {[%emt 00:08:15]} Nd6
{[%clk 00:52:40]} {[%emt 00:01:46]} 25. Nhf3 {[%clk 00:28:23]} {[%emt
00:02:31]} Nf5 {[%clk 00:50:25]} {[%emt 00:02:43]} 26. Ne4 {[%clk 00:24:22]}
{[%emt 00:04:34]} Bxe4 {[%clk 00:48:45]} {[%emt 00:02:10]} 27. dxe4 {[%clk
00:24:34]} {[%emt 00:00:18]} Nd4 {[%clk 00:49:04]} {[%emt 00:00:09]} 28. Nxd4
{[%clk 00:24:49]} {[%emt 00:00:16]} exd4 {[%clk 00:49:15]} {[%emt 00:00:17]} 29.
Bd3 {[%clk 00:24:17]} {[%emt 00:01:05]} Re8 {[%clk 00:46:38]} {[%emt 00:03:05]}
30. f3 {[%clk 00:23:47]} {[%emt 00:01:01]} Bg3 {[%clk 00:46:31]} {[%emt
00:00:36]} 31. Red1 {[%clk 00:24:07]} {[%emt 00:00:11]} Ke6 {[%clk 00:44:58]}
{[%emt 00:02:02]} 32. Kf1 {[%emt 00:01:18]} Ke5 {[%clk 00:37:24]} {[%emt
00:08:02]} 33. Ke2 {[%clk 00:22:40]} {[%emt 00:01:12]} Kf4 {[%clk 00:34:52]}
{[%emt 00:03:00]} 34. Rdb1 {[%clk 00:20:51]} {[%emt 00:02:21]} Kg5 {[%clk
00:33:25]} {[%emt 00:01:55]} 35. Ra4 {[%clk 00:19:28]} {[%emt 00:01:55]} Rxa4
{[%clk 00:30:58]} {[%emt 00:02:56]} 36. bxa4 {[%clk 00:19:54]} {[%emt
00:00:06]} Bf4 {[%clk 00:30:31]} {[%emt 00:00:56]} 37. b3 {[%clk 00:19:55]}
{[%emt 00:00:30]} Kh4 {[%clk 00:30:31]} {[%emt 00:00:28]} 38. Kf1 {[%clk
00:18:35]} {[%emt 00:01:51]} Be3 {[%clk 00:30:22]} {[%emt 00:00:38]} 39. Rb2
{[%clk 00:18:02]} {[%emt 00:01:04]} Re5 {[%clk 00:30:19]} {[%emt 00:00:30]} 40.
Ra2 {[%clk 00:15:10]} {[%emt 00:03:25]} h5 {[%clk 00:29:27]} {[%emt 00:01:21]}
41. Be2 {[%clk 00:07:05]} {[%emt 00:08:37]} f5 {[%clk 00:28:28]} {[%emt
00:01:28]} 42. Bd3 {[%clk 00:07:12]} {[%emt 00:00:25]} fxe4 {[%clk 00:28:05]}
{[%emt 00:00:52]} 43. Bxe4 {[%clk 00:07:19]} {[%emt 00:00:23]} g5 {[%clk
00:27:43]} {[%emt 00:00:50]} 44. Bd3 {[%clk 00:07:02]} {[%emt 00:00:49]} Kg3
{[%clk 00:25:31]} {[%emt 00:02:41]} 45. Be2 {[%clk 00:00:35]} {[%emt 00:06:58]}
Rf5 {[%clk 00:24:45]} {[%emt 00:01:11]} 46. Bd3 {[%clk 00:00:37]} {[%emt
00:00:33]} Rf4 {[%clk 00:24:27]} {[%emt 00:00:47]} 47. Bg6 {[%clk 00:00:36]}
{[%emt 00:00:32]} g4 {[%clk 00:24:23]} {[%emt 00:00:33]} 48. Bxh5 {[%clk
00:28:24]} {[%emt 00:02:43]} gxh3 {[%clk 00:54:12]} {[%emt 00:00:40]} 49. gxh3
{[%clk 00:28:35]} {[%emt 00:00:21]} Kxh3 {[%clk 00:54:03]} {[%emt 00:00:37]} 50.
Bg4+ {[%clk 00:28:56]} {[%emt 00:00:09]} Kh4 {[%clk 00:53:17]} {[%emt
00:01:16]} 51. Rh2+ {[%clk 00:29:03]} {[%emt 00:00:24]} Kg5 {[%clk 00:53:30]}
{[%emt 00:00:16]} 52. Ke2 {[%clk 00:29:09]} {[%emt 00:00:25]} Rf6 {[%clk
00:53:16]} {[%emt 00:00:42]} 53. Kd3 {[%clk 00:24:38]} {[%emt 00:05:02]} Rf7
{[%clk 00:50:16]} {[%emt 00:03:29]} 54. Rh5+ {[%clk 00:23:55]} {[%emt
00:01:14]} Kf4 {[%clk 00:49:59]} {[%emt 00:00:47]} 55. Rh6 {[%clk 00:23:21]}
{[%emt 00:01:05]} Rb7 {[%clk 00:49:13]} {[%emt 00:01:15]} 56. Rh8 {[%clk
00:21:30]} {[%emt 00:02:21]} Kg3 {[%clk 00:47:29]} {[%emt 00:02:14]} 57. Bf5
{[%clk 00:19:21]} {[%emt 00:02:40]} Bf4 {[%clk 00:45:29]} {[%emt 00:02:28]} 58.
Rg8 {[%clk 00:17:09]} {[%emt 00:02:44]} Kf2 {[%clk 00:45:31]} {[%emt 00:00:27]}
59. Be4 {[%clk 00:15:17]} {[%emt 00:02:23]} Re7 {[%clk 00:45:03]} {[%emt
00:00:57]} 60. Rg4 {[%clk 00:15:14]} {[%emt 00:00:33]} Rf7 {[%clk 00:43:32]}
{[%emt 00:01:54]} 61. Bd5 {[%clk 00:12:44]} {[%emt 00:03:08]} Rf6 {[%clk
00:42:56]} {[%emt 00:01:04]} 62. Ke4 {[%clk 00:09:35]} {[%emt 00:03:40]} Bd6
{[%clk 00:41:40]} {[%emt 00:01:45]} 63. Kd3 {[%clk 00:06:28]} {[%emt 00:03:38]}
Rh6 {[%clk 00:41:20]} {[%emt 00:00:46]} 64. Re4 {[%clk 00:05:43]} {[%emt
00:01:19]} Rh1 {[%clk 00:39:05]} {[%emt 00:02:42]} 65. Re2+ {[%clk 00:05:24]}
{[%emt 00:00:53]} Kg3 {[%clk 00:38:47]} {[%emt 00:00:46]} 66. Rb2 {[%clk
00:04:24]} {[%emt 00:01:32]} Rc1 {[%clk 00:38:26]} {[%emt 00:00:49]} 0-1

[Event "2. Itzehoer Schach Open"]
[Site "Itzehoe, Germany"]
[Date "2023.04.30"]
[Round "4.1"]
[White "Carlstedt, Jonathan"]
[Black "Kuegel, Tobias"]
[Result "1-0"]
[TimeControl "90 min / 40 Züge + 30 min + 30 Sek pro Zug"]
[WhiteElo "2452"]
[BlackElo "2332"]

1. Nf3 {[%clk 01:30:58]} {[%emt 00:00:01]} d5 {[%clk 01:30:35]} {[%emt
00:00:26]} 2. b3 {[%clk 01:31:16]} {[%emt 00:00:12]} Nf6 {[%clk 01:30:14]}
{[%emt 00:00:51]} 3. Bb2 {[%clk 01:31:39]} {[%emt 00:00:07]} e6 {[%clk
01:28:37]} {[%emt 00:02:07]} 4. e3 {[%clk 01:31:57]} {[%emt 00:00:12]} c5
{[%clk 01:28:20]} {[%emt 00:00:47]} 5. d4 {[%clk 01:28:27]} {[%emt 00:04:00]}
Nc6 {[%clk 01:25:26]} {[%emt 00:03:24]} 6. Nbd2 {[%clk 01:28:37]} {[%emt
00:00:19]} Be7 {[%clk 01:19:35]} {[%emt 00:06:21]} 7. dxc5 {[%clk 01:28:34]}
{[%emt 00:00:33]} O-O {[%clk 01:19:21]} {[%emt 00:00:43]} 8. a3 {[%clk
01:28:42]} {[%emt 00:00:23]} a5 {[%clk 01:18:57]} {[%emt 00:00:55]} 9. Bd3
{[%clk 01:23:32]} {[%emt 00:05:39]} Nd7 {[%clk 01:17:32]} {[%emt 00:01:55]} 10.
b4 {[%clk 01:19:10]} {[%emt 00:04:53]} axb4 {[%clk 01:16:59]} {[%emt 00:01:02]}
11. axb4 {[%clk 01:16:49]} {[%emt 00:02:51]} Rxa1 {[%clk 01:14:11]} {[%emt
00:03:19]} 12. Qxa1 {[%clk 01:17:13]} {[%emt 00:00:05]} Nxb4 {[%clk 01:10:20]}
{[%emt 00:04:20]} 13. Bxg7 {[%clk 01:17:23]} {[%emt 00:00:21]} Bf6 {[%clk
01:09:40]} {[%emt 00:01:11]} 14. Bxf6 {[%clk 01:17:43]} {[%emt 00:00:10]} Qxf6
{[%clk 01:09:57]} {[%emt 00:00:13]} 15. Qxf6 {[%clk 01:13:51]} {[%emt
00:04:20]} Nxf6 {[%clk 01:10:16]} {[%emt 00:00:14]} 16. Ke2 {[%clk 01:12:15]}
{[%emt 00:02:05]} Nd7 {[%clk 01:08:25]} {[%emt 00:02:21]} 17. Nb3 {[%clk
01:12:28]} {[%emt 00:00:17]} b6 {[%clk 00:39:57]} {[%emt 00:28:58]} 18. cxb6
{[%clk 01:10:58]} {[%emt 00:02:00]} Nxb6 {[%clk 00:39:04]} {[%emt 00:01:23]} 19.
Rb1 {[%clk 01:09:17]} {[%emt 00:02:11]} Na4 {[%clk 00:34:40]} {[%emt 00:04:54]}
20. Kd2 {[%clk 01:09:14]} {[%emt 00:00:31]} Nxd3 {[%clk 00:31:35]} {[%emt
00:03:36]} 21. cxd3 {[%clk 01:09:18]} {[%emt 00:00:25]} f6 {[%clk 00:31:50]}
{[%emt 00:00:16]} 22. Rc1 {[%clk 01:06:39]} {[%emt 00:03:08]} e5 {[%clk
00:31:08]} {[%emt 00:01:13]} 23. Nc5 {[%clk 01:04:54]} {[%emt 00:02:15]} Nb6
{[%clk 00:30:25]} {[%emt 00:01:13]} 24. Rb1 {[%clk 01:01:31]} {[%emt 00:03:54]}
Nd7 {[%clk 00:29:56]} {[%emt 00:00:59]} 25. Ne6 {[%clk 00:57:50]} {[%emt
00:04:11]} Re8 {[%clk 00:29:48]} {[%emt 00:00:38]} 26. Nc7 {[%clk 00:58:07]}
{[%emt 00:00:13]} Rd8 {[%clk 00:29:16]} {[%emt 00:01:02]} 27. Nxd5 {[%clk
00:58:25]} {[%emt 00:00:12]} Nc5 {[%clk 00:29:25]} {[%emt 00:00:21]} 28. Nxf6+
{[%clk 00:50:44]} {[%emt 00:08:11]} Kg7 {[%clk 00:28:13]} {[%emt 00:01:41]} 29.
Rb6 {[%clk 00:50:51]} {[%emt 00:00:23]} Nxd3 {[%clk 00:27:37]} {[%emt
00:01:07]} 30. Rd6 {[%clk 00:45:23]} {[%emt 00:05:58]} Rxd6 {[%clk 00:26:52]}
{[%emt 00:01:15]} 31. Ne8+ {[%clk 00:45:47]} {[%emt 00:00:05]} Kg6 {[%clk
00:26:44]} {[%emt 00:00:39]} 32. Nxd6 {[%clk 00:46:12]} {[%emt 00:00:06]} Ba6
{[%clk 00:27:07]} {[%emt 00:00:07]} 33. Ne4 {[%clk 00:46:35]} {[%emt 00:00:06]}
Kf5 {[%clk 00:27:18]} {[%emt 00:00:19]} 34. Ng3+ {[%clk 00:46:59]} {[%emt
00:00:06]} Kf6 {[%clk 00:24:50]} {[%emt 00:02:56]} 35. Nh1 {[%clk 00:47:21]}
{[%emt 00:00:10]} Nc5 {[%clk 00:24:46]} {[%emt 00:00:34]} 36. Ne1 {[%clk
00:46:38]} {[%emt 00:01:12]} Ne4+ {[%clk 00:24:07]} {[%emt 00:01:10]} 37. Kc2
{[%clk 00:46:47]} {[%emt 00:00:20]} h5 {[%clk 00:23:37]} {[%emt 00:00:59]} 38.
f3 {[%clk 00:46:49]} {[%emt 00:00:29]} Nd6 {[%clk 00:23:53]} {[%emt 00:00:15]}
39. e4 {[%clk 00:46:30]} {[%emt 00:00:48]} Kg5 {[%clk 00:21:21]} {[%emt
00:03:02]} 40. Kd2 {[%clk 00:45:14]} {[%emt 00:01:47]} h4 {[%clk 00:19:18]}
{[%emt 00:02:32]} 41. Ke3 {[%clk 00:43:12]} {[%emt 00:02:29]} Nc4+ {[%clk
00:18:21]} {[%emt 00:01:31]} 42. Kf2 {[%clk 00:43:35]} {[%emt 00:00:06]} Na3
{[%clk 00:18:41]} {[%emt 00:00:11]} 43. Ke3 {[%clk 00:39:09]} {[%emt 00:04:56]}
Bf1 {[%clk 00:18:11]} {[%emt 00:00:59]} 44. g3 {[%clk 00:38:06]} {[%emt
00:01:33]} hxg3 {[%clk 00:14:00]} {[%emt 00:04:42]} 45. Nxg3 {[%clk 00:38:28]}
{[%emt 00:00:08]} Ba6 {[%clk 00:05:33]} {[%emt 00:08:57]} 46. Ng2 {[%clk
00:38:28]} {[%emt 00:00:28]} Nc2+ {[%clk 00:04:28]} {[%emt 00:01:37]} 47. Kf2
{[%clk 00:38:49]} {[%emt 00:00:09]} Nb4 {[%clk 00:03:36]} {[%emt 00:01:22]} 48.
h4+ {[%clk 00:38:18]} {[%emt 00:01:00]} Kg6 {[%clk 00:03:29]} {[%emt 00:00:37]}
49. Nf5 {[%clk 00:37:57]} {[%emt 00:00:52]} Kh5 {[%clk 00:01:35]} {[%emt
00:02:24]} 50. Kg3 {[%clk 00:37:21]} {[%emt 00:01:05]} Nc6 {[%clk 00:28:38]}
{[%emt 00:03:27]} 51. Nge3 {[%clk 01:03:20]} {[%emt 00:04:31]} Bc8 {[%clk
00:28:46]} {[%emt 00:00:23]} 52. Nd6 {[%clk 01:00:48]} {[%emt 00:03:01]} Be6
{[%clk 00:28:37]} {[%emt 00:00:40]} 53. Ng4 {[%clk 01:01:10]} {[%emt 00:00:07]}
Kg6 {[%clk 00:24:00]} {[%emt 00:05:07]} 54. Nb7 {[%clk 01:00:43]} {[%emt
00:00:57]} Kh5 {[%clk 00:23:44]} {[%emt 00:00:45]} 55. Nc5 {[%clk 01:01:05]}
{[%emt 00:00:08]} Bc8 {[%clk 00:24:11]} {[%emt 00:00:03]} 56. Nd3 {[%clk
01:01:28]} {[%emt 00:00:07]} Nd4 {[%clk 00:24:31]} {[%emt 00:00:10]} 57. Nf6+
{[%clk 00:50:44]} {[%emt 00:11:10]} Kg6 {[%clk 00:24:07]} {[%emt 00:00:58]} 58.
Nd5 {[%clk 00:51:09]} {[%emt 00:00:05]} Kh5 {[%clk 00:22:27]} {[%emt 00:02:10]}
59. Nxe5 {[%clk 00:51:06]} {[%emt 00:00:33]} Ne2+ {[%clk 00:22:53]} {[%emt
00:00:04]} 60. Kf2 {[%clk 00:51:23]} {[%emt 00:00:12]} Nd4 {[%clk 00:23:01]}
{[%emt 00:00:24]} 61. Ng6 {[%clk 00:48:14]} {[%emt 00:03:39]} Kxg6 {[%clk
00:19:30]} {[%emt 00:04:00]} 62. Ne7+ {[%clk 00:48:32]} {[%emt 00:00:12]} Kh5
{[%clk 00:19:55]} {[%emt 00:00:05]} 63. Nxc8 {[%clk 00:48:57]} {[%emt
00:00:04]} Kxh4 {[%clk 00:20:20]} {[%emt 00:00:05]} 64. Ne7 {[%clk 00:48:51]}
{[%emt 00:00:36]} Kg5 {[%clk 00:19:53]} {[%emt 00:00:57]} 65. Nd5 {[%clk
00:49:11]} {[%emt 00:00:10]} Kh4 {[%clk 00:19:20]} {[%emt 00:01:03]} 66. Nb4
{[%clk 00:49:30]} {[%emt 00:00:11]} Ne6 {[%clk 00:19:07]} {[%emt 00:00:43]} 67.
Ke3 {[%clk 00:49:48]} {[%emt 00:00:12]} Kg3 {[%clk 00:19:30]} {[%emt 00:00:07]}
68. Nd3 {[%clk 00:50:05]} {[%emt 00:00:12]} Ng5 {[%clk 00:19:38]} {[%emt
00:00:24]} 69. f4 {[%clk 00:50:16]} {[%emt 00:00:19]} Nf7 {[%clk 00:19:21]}
{[%emt 00:00:47]} 70. e5 {[%clk 00:50:02]} {[%emt 00:00:43]} Kg4 {[%clk
00:19:07]} {[%emt 00:00:44]} 71. Ke4 {[%clk 00:50:23]} {[%emt 00:00:09]} Kh5
{[%clk 00:18:59]} {[%emt 00:00:39]} 72. e6 {[%clk 00:45:45]} {[%emt 00:05:08]}
Nd6+ {[%clk 00:16:39]} {[%emt 00:02:50]} 73. Ke5 {[%clk 00:46:09]} {[%emt
00:00:06]} Nc4+ {[%clk 00:17:05]} {[%emt 00:00:05]} 74. Kf6 {[%clk 00:46:31]}
{[%emt 00:00:07]} Kg4 {[%clk 00:17:16]} {[%emt 00:00:19]} 75. Ne5+ {[%clk
00:46:46]} {[%emt 00:00:15]} Nxe5 {[%clk 00:17:41]} {[%emt 00:00:06]} 76. fxe5
{[%clk 00:47:10]} {[%emt 00:00:05]} Kh5 {[%clk 00:18:04]} {[%emt 00:00:07]} 77.
e7 {[%clk 00:47:30]} {[%emt 00:00:10]} Kh6 {[%clk 00:18:01]} {[%emt 00:00:33]}
78. e8=Q {[%clk 00:47:49]} {[%emt 00:00:11]} Kh7 {[%clk 00:18:19]} {[%emt
00:00:12]} 79. Qa8 {[%clk 00:48:11]} {[%emt 00:00:08]} Kh6 {[%clk 00:18:44]}
{[%emt 00:00:06]} 80. Qh1 {[%clk 00:48:02]} {[%emt 00:00:04]} 1-0

[Event "2. Itzehoer Schach Open"]
[Site "Itzehoe, Germany"]
[Date "2023.04.30"]
[Round "4.7"]
[White "Moysich, Dirk"]
[Black "Neumann, Frank"]
[Result "0-1"]
[TimeControl "90 min / 40 Züge + 30 min + 30 Sek pro Zug"]
[WhiteElo "1860"]
[BlackElo "2030"]

1. c4 {[%clk 01:30:46]} {[%emt 00:00:12]} e5 {[%clk 01:30:56]} {[%emt
00:00:06]} 2. g3 {[%clk 01:31:05]} {[%emt 00:00:11]} Nf6 {[%clk 01:31:15]}
{[%emt 00:00:11]} 3. Bg2 {[%clk 01:31:27]} {[%emt 00:00:07]} d5 {[%clk
01:31:35]} {[%emt 00:00:10]} 4. cxd5 {[%clk 01:31:41]} {[%emt 00:00:16]} Nxd5
{[%clk 01:32:04]} {[%emt 00:00:02]} 5. Nc3 {[%clk 01:32:02]} {[%emt 00:00:08]}
Nb6 {[%clk 01:32:27]} {[%emt 00:00:07]} 6. Nf3 {[%clk 01:32:02]} {[%emt
00:00:31]} Nc6 {[%clk 01:32:51]} {[%emt 00:00:06]} 7. O-O {[%clk 01:32:14]}
{[%emt 00:00:17]} Be7 {[%clk 01:33:17]} {[%emt 00:00:05]} 8. d3 {[%clk
01:30:05]} {[%emt 00:02:39]} O-O {[%clk 01:33:38]} {[%emt 00:00:08]} 9. Be3
{[%clk 01:30:10]} {[%emt 00:00:25]} Be6 {[%clk 01:32:50]} {[%emt 00:01:17]} 10.
Rc1 {[%clk 01:26:59]} {[%emt 00:03:41]} f6 {[%clk 01:32:19]} {[%emt 00:01:01]}
11. a3 {[%clk 01:26:37]} {[%emt 00:00:54]} Nd4 {[%clk 01:25:48]} {[%emt
00:07:00]} 12. Bxd4 {[%clk 01:23:21]} {[%emt 00:03:46]} exd4 {[%clk 01:26:16]}
{[%emt 00:00:02]} 13. Ne4 {[%clk 01:23:28]} {[%emt 00:00:22]} Qd7 {[%clk
01:23:14]} {[%emt 00:03:33]} 14. Qc2 {[%clk 01:07:53]} {[%emt 00:16:05]} c6
{[%clk 01:21:30]} {[%emt 00:02:14]} 15. Nc5 {[%clk 00:59:11]} {[%emt 00:09:13]}
Bxc5 {[%clk 01:21:47]} {[%emt 00:00:13]} 16. Qxc5 {[%clk 00:59:39]} {[%emt
00:00:01]} Rad8 {[%clk 01:19:00]} {[%emt 00:03:17]} 17. Qa5 {[%clk 00:51:10]}
{[%emt 00:09:00]} Nc8 {[%clk 01:17:33]} {[%emt 00:01:56]} 18. b4 {[%clk
00:49:01]} {[%emt 00:02:39]} a6 {[%clk 01:14:28]} {[%emt 00:03:35]} 19. Qc5
{[%clk 00:45:44]} {[%emt 00:03:47]} Rfe8 {[%clk 01:10:04]} {[%emt 00:04:53]} 20.
Rc2 {[%clk 00:43:49]} {[%emt 00:02:26]} Qd6 {[%clk 00:56:51]} {[%emt 00:13:43]}
21. Rb1 {[%clk 00:41:14]} {[%emt 00:03:05]} Rd7 {[%clk 00:54:06]} {[%emt
00:03:14]} 22. a4 {[%clk 00:39:51]} {[%emt 00:01:55]} Red8 {[%clk 00:52:07]}
{[%emt 00:02:28]} 23. Nd2 {[%clk 00:32:12]} {[%emt 00:08:09]} Ne7 {[%clk
00:35:58]} {[%emt 00:16:38]} 24. Ne4 {[%clk 00:31:03]} {[%emt 00:01:39]} Qb8
{[%clk 00:32:34]} {[%emt 00:03:54]} 25. Rcb2 {[%clk 00:27:50]} {[%emt
00:03:42]} b6 {[%clk 00:29:27]} {[%emt 00:03:38]} 26. Qc1 {[%clk 00:26:13]}
{[%emt 00:02:06]} Bd5 {[%clk 00:27:40]} {[%emt 00:02:19]} 27. a5 {[%clk
00:26:20]} {[%emt 00:00:23]} f5 {[%clk 00:26:04]} {[%emt 00:02:05]} 28. Ng5
{[%clk 00:21:57]} {[%emt 00:04:52]} Rc8 {[%clk 00:18:14]} {[%emt 00:08:21]} 29.
Rc2 {[%clk 00:17:26]} {[%emt 00:05:00]} Rdd8 {[%clk 00:15:55]} {[%emt
00:02:50]} 30. Nf3 {[%clk 00:14:57]} {[%emt 00:02:59]} Bxf3 {[%clk 00:13:12]}
{[%emt 00:03:13]} 31. Bxf3 {[%clk 00:15:25]} {[%emt 00:00:02]} Nd5 {[%clk
00:13:42]} 32. Bxd5+ {[%clk 00:13:13]} {[%emt 00:02:41]} cxd5 {[%clk 00:12:57]}
{[%emt 00:01:15]} 33. axb6 {[%clk 00:08:19]} {[%emt 00:05:24]} Rxc2 {[%clk
00:12:47]} {[%emt 00:00:40]} 34. Qxc2 {[%clk 00:06:45]} {[%emt 00:02:04]} Qxb6
{[%clk 00:13:14]} {[%emt 00:00:04]} 35. Qa2 {[%clk 00:06:38]} {[%emt 00:00:36]}
h6 {[%clk 00:09:15]} {[%emt 00:04:29]} 36. Qa5 {[%clk 00:05:43]} {[%emt
00:01:26]} Qf6 {[%clk 00:06:39]} {[%emt 00:03:05]} 37. Rc1 {[%clk 00:04:50]}
{[%emt 00:01:24]} Kh7 {[%clk 00:06:15]} {[%emt 00:00:53]} 38. Qc7 {[%clk
00:02:17]} {[%emt 00:03:03]} Rd6 {[%clk 00:06:28]} {[%emt 00:00:17]} 39. Qa5
{[%clk 00:01:30]} {[%emt 00:01:17]} f4 {[%clk 00:04:48]} {[%emt 00:02:10]} 40.
Rc5 {[%clk 00:01:54]} {[%emt 00:00:07]} f3 {[%clk 00:03:56]} {[%emt 00:01:21]}
41. exf3 {[%clk 00:30:10]} {[%emt 00:02:13]} Qxf3 {[%clk 00:34:05]} {[%emt
00:00:22]} 42. Qa3 {[%clk 00:29:19]} {[%emt 00:01:13]} Re6 {[%clk 00:30:00]}
{[%emt 00:04:43]} 43. Rc1 {[%clk 00:29:17]} {[%emt 00:00:31]} Re2 {[%clk
00:28:44]} {[%emt 00:01:46]} 44. Rf1 {[%clk 00:29:44]} {[%emt 00:00:03]} Qf6
{[%clk 00:26:18]} {[%emt 00:02:56]} 45. h4 {[%clk 00:29:34]} {[%emt 00:00:41]}
Rd2 {[%clk 00:24:56]} {[%emt 00:01:52]} 46. Kg2 {[%clk 00:29:29]} {[%emt
00:00:35]} Qg6 {[%clk 00:24:31]} {[%emt 00:00:55]} 47. Ra1 {[%clk 00:29:48]}
{[%emt 00:00:10]} Qf5 {[%clk 00:22:47]} {[%emt 00:02:14]} 48. Rf1 {[%clk
00:27:39]} {[%emt 00:02:37]} Rxd3 {[%clk 00:22:33]} {[%emt 00:00:47]} 49. Qxa6
{[%clk 00:27:40]} {[%emt 00:00:29]} Qf3+ {[%clk 00:22:46]} {[%emt 00:00:16]} 50.
Kg1 {[%clk 00:27:49]} {[%emt 00:00:21]} Rb3 {[%clk 00:22:48]} {[%emt 00:00:29]}
51. b5 {[%clk 00:26:13]} {[%emt 00:02:06]} d3 {[%clk 00:22:46]} {[%emt
00:00:32]} 52. h5 {[%clk 00:20:55]} {[%emt 00:05:48]} Qxh5 {[%clk 00:20:15]}
{[%emt 00:03:01]} 53. Qa4 {[%clk 00:21:16]} {[%emt 00:00:09]} Rb2 {[%clk
00:19:03]} {[%emt 00:01:41]} 54. Qd4 {[%clk 00:21:19]} {[%emt 00:00:28]} Rb3
{[%clk 00:13:07]} {[%emt 00:06:27]} 55. Qa4 {[%clk 00:21:23]} {[%emt 00:00:27]}
Rb2 {[%clk 00:11:10]} {[%emt 00:02:25]} 56. Qd4 {[%clk 00:21:50]} {[%emt
00:00:03]} Qe2 {[%clk 00:08:35]} {[%emt 00:03:05]} 57. Qxd5 {[%clk 00:21:06]}
{[%emt 00:01:15]} d2 {[%clk 00:08:10]} {[%emt 00:00:56]} 58. Qf5+ {[%clk
00:21:19]} {[%emt 00:00:16]} Kg8 {[%clk 00:08:28]} {[%emt 00:00:10]} 59. Qc8+
{[%clk 00:21:41]} {[%emt 00:00:10]} Kf7 {[%clk 00:08:11]} {[%emt 00:00:46]} 60.
Qf5+ {[%clk 00:21:37]} {[%emt 00:00:35]} Ke7 {[%clk 00:07:24]} {[%emt
00:01:17]} 61. Qc5+ {[%clk 00:21:31]} {[%emt 00:00:36]} Ke6 {[%clk 00:06:54]}
{[%emt 00:00:58]} 62. Qc8+ {[%clk 00:20:51]} {[%emt 00:01:11]} Kd5 {[%clk
00:06:16]} {[%emt 00:01:09]} 63. Qc6+ {[%clk 00:18:28]} {[%emt 00:02:53]} Kd4
{[%clk 00:06:23]} {[%emt 00:00:23]} 64. Qd6+ {[%clk 00:18:43]} {[%emt
00:00:15]} Kc3 {[%clk 00:06:00]} {[%emt 00:00:52]} 65. b6 {[%clk 00:18:38]}
{[%emt 00:00:36]} Qxf1+ {[%clk 00:05:16]} {[%emt 00:01:13]} 66. Kxf1 {[%clk
00:18:39]} {[%emt 00:00:30]} Rb1+ {[%emt 00:01:09]} 0-1